fUST/lending_fUST_20250518
["ID","MTS","AMOUNT","RATE_DAILY","PERIOD"]
[361474608,1747579845383,-1511.46,0.00014931,2]
[361474611,1747579845396,-450.0,0.00014931,2]
[361474613,1747579845406,-450.0,0.00014931,2]
[361474615,1747579845419,-450.0,0.00014931,2]
[361474617,1747579845431,-594.22,0.00014931,2]
[361474620,1747579845444,-450.0,0.00014931,2]
[361474623,1747579845457,-790.93,0.00014931,2]
[361474627,1747579845469,-605.84,0.00014931,2]
[361474629,1747579845483,-1310.29,0.00014931,2]
[361474632,1747579845495,-500.0,0.00014938,2]
[361474636,1747579845507,-500.0,0.00014973,2]
[361474638,1747579845520,-500.0,0.00014973,2]
[361474640,1747579845530,-500.0,0.00014973,2]
[361474642,1747579845546,-501.08157937,0.00014973,2]
[361474644,1747579845558,-500.02275469,0.00014973,2]
[361474647,1747579845571,-500.0,0.00014973,2]
[361474649,1747579845584,-500.0,0.00014973,2]
[361474651,1747579845596,-500.0,0.00014973,2]
[361474653,1747579845609,-500.0,0.00014973,2]
[361474656,1747579845624,-500.0,0.00014973,2]
[361474658,1747579845636,-500.0,0.00014973,2]
[361474660,1747579845648,-501.03520293,0.00014973,2]
[361474663,1747579845659,-500.99376353,0.00014973,2]
[361474665,1747579845673,-500.0,0.00014973,2]
[361474667,1747579845685,-500.0,0.00014973,2]
[361474669,1747579845697,-502.07544195,0.00014973,2]
[361474671,1747579845710,-7646.57116731,0.00015,3]
[361474674,1747579845721,-36223.23803257,0.00015,2]
[361474676,1747579845733,-2000.0,0.00015,2]
[361474678,1747579845746,-1000.0,0.00015,2]
[361474679,1747579845759,-247990.86656687,0.00015,2]
[361474681,1747579845776,-160.0,0.00015,2]
[361474683,1747579845787,-153.0,0.00015041,2]
[361474685,1747579845799,-153.0,0.00015041,2]
[361474687,1747579845809,-153.0,0.00015041,2]
[361474689,1747579845820,-151.0,0.00015068,2]
[361474691,1747579845831,-151.0,0.00015068,2]
[361474693,1747579845845,-151.0,0.00015068,2]
[361474694,1747579845859,-151.0,0.00015068,2]
[361474695,1747579845870,-450.0,0.00015068,2]
[361474697,1747579845880,-155.268986,0.00015068,2]
[361474699,1747579845891,-155.268986,0.00015068,2]
[361474701,1747579845902,-634.09,0.00015068,2]
[361474703,1747579845914,-572.68,0.00015068,2]
[361474705,1747579845926,-919.46,0.00015068,2]
[361474706,1747579845937,-450.0,0.00015068,2]
[361474708,1747579845947,-358.564294,0.00015068,2]
[361474710,1747579845958,-358.564294,0.00015068,2]
[361474711,1747579845969,-450.0,0.00015068,2]
[361474712,1747579845980,-450.0,0.00015068,2]
[361474713,1747579845992,-1803.91,0.00015068,2]
[361474714,1747579846004,-1306.72,0.00015068,2]
[361474715,1747579846017,-645.83,0.00015068,2]
[361474716,1747579846028,-4149.33,0.00015068,2]
[361474717,1747579846041,-450.0,0.00015068,2]
[361474718,1747579846052,-1511.46,0.00015068,2]
[361474719,1747579846063,-450.0,0.00015068,2]
[361474721,1747579846074,-169.82164607,0.00015068,2]
[361474723,1747579846085,-450.0,0.00015068,2]
[361474725,1747579846096,-594.22,0.00015068,2]
[361474727,1747579846107,-450.0,0.00015068,2]
[361474729,1747579846118,-790.93,0.00015068,2]
[361474731,1747579846129,-605.84,0.00015068,2]
[361474734,1747579846140,-1310.29,0.00015068,2]
[361474736,1747579846152,-286.52064899,0.00015112,2]
[361474738,1747579846162,-490.730399,0.00015141,2]
[361474740,1747579846174,-490.730399,0.00015141,2]
[361474742,1747579846185,-455.025104,0.00015141,2]
[361474745,1747579846197,-455.025104,0.00015141,2]
[361474747,1747579846208,-3744.51631428,0.00015141,2]
[361474749,1747579846219,-151.0,0.00015205,2]
[361474751,1747579846230,-151.0,0.00015205,2]
[361474753,1747579846241,-151.0,0.00015205,2]
[361474755,1747579846252,-151.0,0.00015205,2]
[361474758,1747579846269,-151.0,0.00015205,2]
[361474760,1747579846280,-151.0,0.00015205,2]
[361474762,1747579846291,-208.04388,0.00015205,2]
[361474764,1747579846305,-208.04388,0.00015205,2]
[361474766,1747579846316,-151.0,0.00015205,2]
[361474768,1747579846327,-187.710025,0.00015205,2]
[361474771,1747579846338,-187.710025,0.00015205,2]
[361474773,1747579846349,-450.0,0.00015205,2]
[361474775,1747579846360,-634.09,0.00015205,2]
[361474777,1747579846371,-151.0,0.00015205,2]
[361474779,1747579846381,-151.0,0.00015205,2]
[361474781,1747579846392,-572.68,0.00015205,2]
[361474784,1747579846403,-151.0,0.00015205,2]
[361474786,1747579846414,-151.0,0.00015205,2]
[361474788,1747579846425,-151.0,0.00015205,2]
[361474790,1747579846437,-151.0,0.00015205,2]
[361474792,1747579846449,-260.0082649,0.00015205,2]
[361474795,1747579846462,-919.46,0.00015205,2]
[361474797,1747579846474,-450.0,0.00015205,2]
[361474799,1747579846485,-450.0,0.00015205,2]
[361474801,1747579846497,-450.0,0.00015205,2]
[361474804,1747579846508,-1803.91,0.00015205,2]
[361474806,1747579846525,-1306.72,0.00015205,2]
[361474808,1747579846537,-229.46059,0.00015205,2]
[361474811,1747579846551,-229.46059,0.00015205,2]
[361474813,1747579846562,-229.46059,0.00015205,2]
[361474815,1747579846573,-229.4606,0.00015205,2]
[361474817,1747579846583,-645.83,0.00015205,2]
[361474819,1747579846592,-4149.33,0.00015205,2]
[361474821,1747579846602,-450.0,0.00015205,2]
[361474823,1747579846612,-1511.46,0.00015205,2]
[361474825,1747579846623,-450.0,0.00015205,2]
[361474827,1747579846633,-450.0,0.00015205,2]
[361474829,1747579846643,-594.22,0.00015205,2]
[361474831,1747579846652,-450.0,0.00015205,2]
[361474833,1747579846661,-790.93,0.00015205,2]
[361474835,1747579846671,-605.84,0.00015205,2]
[361474837,1747579846680,-1310.29,0.00015205,2]
[361474839,1747579846690,-2794.8295457,0.00015223,2]
[361474841,1747579846699,-465.18206989,0.00015342,2]
[361474843,1747579846708,-155.268986,0.00015342,2]
[361474846,1747579846718,-155.268986,0.00015342,2]
[361474848,1747579846727,-634.09,0.00015342,2]
[361474849,1747579846737,-572.68,0.00015342,2]
[361474852,1747579846746,-919.46,0.00015342,2]
[361474854,1747579846756,-450.0,0.00015342,2]
[361474856,1747579846769,-358.564294,0.00015342,2]
[361474858,1747579846778,-358.564294,0.00015342,2]
[361474860,1747579846787,-450.0,0.00015342,2]
[361474862,1747579846797,-450.0,0.00015342,2]
[361474864,1747579846806,-1803.91,0.00015342,2]
[361474885,1747579846998,-1306.72,0.00015342,2]
[361474888,1747579847020,-645.83,0.00015342,2]
[361474890,1747579847032,-4149.33,0.00015342,2]
[361474892,1747579847041,-450.0,0.00015342,2]
[361474894,1747579847050,-1206.3896526,0.00015342,2]
[361474899,1747579847086,-1269.08,0.00014246,2]
[361474901,1747579847095,-305.0703474,0.00015342,2]
[361474903,1747579847104,-291.79662616,0.00015342,2]
[361474905,1747579847113,-450.0,0.00015342,2]
[361474907,1747579847123,-594.22,0.00015342,2]
[361474909,1747579847132,-450.0,0.00015342,2]
[361474911,1747579847141,-790.93,0.00015342,2]
[361474913,1747579847150,-605.84,0.00015342,2]
[361474915,1747579847159,-1310.29,0.00015342,2]
[361474917,1747579847168,-180.0,0.0001547,2]
[361474919,1747579847178,-151.0,0.00015479,2]
[361474921,1747579847187,-151.0,0.00015479,2]
[361474923,1747579847196,-208.489906,0.00015479,2]
[361474925,1747579847205,-183.128104,0.00015479,2]
[361474927,1747579847214,-151.0,0.00015479,2]
[361474929,1747579847224,-151.0,0.00015479,2]
[361474931,1747579847233,-151.0,0.00015479,2]
[361474933,1747579847242,-187.710025,0.00015479,2]
[361474935,1747579847252,-187.710025,0.00015479,2]
[361474937,1747579847261,-490.730399,0.00015479,2]
[361474939,1747579847274,-490.730399,0.00015479,2]
[361474941,1747579847284,-455.025104,0.00015479,2]
[361474943,1747579847294,-455.025104,0.00015479,2]
[361474945,1747579847303,-634.09,0.00015479,2]
[361474947,1747579847313,-572.68,0.00015479,2]
[361474949,1747579847322,-919.46,0.00015479,2]
[361474951,1747579847332,-450.0,0.00015479,2]
[361474953,1747579847342,-450.0,0.00015479,2]
[361474955,1747579847351,-450.0,0.00015479,2]
[361474957,1747579847360,-1803.91,0.00015479,2]
[361474959,1747579847370,-1306.72,0.00015479,2]
[361474961,1747579847379,-645.83,0.00015479,2]
[361474963,1747579847388,-4149.33,0.00015479,2]
[361474965,1747579847397,-450.0,0.00015479,2]
[361474967,1747579847407,-1511.46,0.00015479,2]
[361474969,1747579847416,-450.0,0.00015479,2]
[361474971,1747579847425,-594.22,0.00015479,2]
[361474973,1747579847434,-450.0,0.00015479,2]
[361474975,1747579847443,-790.93,0.00015479,2]
[361474977,1747579847453,-605.84,0.00015479,2]
[361474979,1747579847462,-1310.29,0.00015479,2]
[361474981,1747579847471,-1136.39803199,0.00015479,2]
[361474983,1747579847481,-1000.0,0.00015521,2]
[361474985,1747579847490,-1000.0,0.00015521,2]
[361474987,1747579847500,-500.0,0.00015521,2]
[361474989,1747579847509,-500.0,0.00015521,2]
[361474991,1747579847520,-503.10517284,0.00015521,2]
[361474993,1747579847529,-1000.0,0.00015521,2]
[361474995,1747579847540,-500.0,0.00015521,2]
[361474997,1747579847551,-503.02853215,0.00015521,2]
[361474999,1747579847561,-1000.0,0.00015521,2]
[361475001,1747579847570,-151.63523759,0.00015526,2]
[361475003,1747579847579,-215.0738,0.00015526,2]
[361475005,1747579847588,-823.0,0.00015555,2]
[361475008,1747579847597,-3744.51631428,0.0001559,2]
[361475010,1747579847607,-208.04388,0.0001559,2]
[361475011,1747579847616,-208.04388,0.0001559,2]
[361475014,1747579847626,-1696.03087874,0.00015595,2]
[361475016,1747579847635,-151.0,0.000156,2]
[361475018,1747579847645,-151.0,0.00015616,2]
[361475020,1747579847655,-151.0,0.00015616,2]
[361475022,1747579847664,-151.0,0.00015616,2]
[361475024,1747579847672,-151.0,0.00015616,2]
[361475026,1747579847682,-155.268986,0.00015616,2]
[361475028,1747579847691,-155.268986,0.00015616,2]
[361475030,1747579847700,-634.09,0.00015616,2]
[361475032,1747579847708,-572.68,0.00015616,2]
[361475034,1747579847718,-919.46,0.00015616,2]
[361475036,1747579847727,-450.0,0.00015616,2]
[361475038,1747579847736,-450.0,0.00015616,2]
[361475040,1747579847746,-450.0,0.00015616,2]
[361475042,1747579847755,-1803.91,0.00015616,2]
[361475044,1747579847766,-1306.72,0.00015616,2]
[361475046,1747579847775,-645.83,0.00015616,2]
[361475048,1747579847784,-4149.33,0.00015616,2]
[361475050,1747579847793,-450.0,0.00015616,2]
[361475052,1747579847803,-1511.46,0.00015616,2]
[361475054,1747579847812,-450.0,0.00015616,2]
[361475056,1747579847820,-594.22,0.00015616,2]
[361475058,1747579847829,-450.0,0.00015616,2]
[361475060,1747579847839,-790.93,0.00015616,2]
[361475062,1747579847848,-605.84,0.00015616,2]
[361475064,1747579847857,-1310.29,0.00015616,2]
[361475066,1747579847867,-4212.91042806,0.00015731,2]
[361475068,1747579847876,-151.0,0.00015753,2]
[361475070,1747579847885,-151.0,0.00015753,2]
[361475072,1747579847895,-151.0,0.00015753,2]
[361475074,1747579847904,-252.88147,0.00015753,2]
[361475076,1747579847913,-490.730399,0.00015753,2]
[361475078,1747579847923,-490.730399,0.00015753,2]
[361475080,1747579847932,-455.025104,0.00015753,2]
[361475082,1747579847942,-455.025104,0.00015753,2]
[361475084,1747579847951,-634.09,0.00015753,2]
[361475086,1747579847960,-572.68,0.00015753,2]
[361475088,1747579847969,-919.46,0.00015753,2]
[361475090,1747579847978,-450.0,0.00015753,2]
[361475092,1747579847987,-358.564294,0.00015753,2]
[361475094,1747579847997,-358.564294,0.00015753,2]
[361475096,1747579848006,-450.0,0.00015753,2]
[361475098,1747579848018,-450.0,0.00015753,2]
[361475100,1747579848027,-1803.91,0.00015753,2]
[361475102,1747579848036,-1306.72,0.00015753,2]
[361475104,1747579848046,-645.83,0.00015753,2]
[361475106,1747579848055,-4149.33,0.00015753,2]
[361475108,1747579848064,-450.0,0.00015753,2]
[361475110,1747579848073,-1511.46,0.00015753,2]
[361475112,1747579848082,-450.0,0.00015753,2]
[361475114,1747579848092,-594.22,0.00015753,2]
[361475116,1747579848101,-450.0,0.00015753,2]
[361475118,1747579848109,-790.93,0.00015753,2]
[361475120,1747579848119,-605.84,0.00015753,2]
[361475122,1747579848128,-1310.29,0.00015753,2]
[361475124,1747579848137,-151.0,0.00015813,2]
[361475126,1747579848147,-187.710025,0.00015813,2]
[361475128,1747579848156,-187.710025,0.00015813,2]
[361475129,1747579848165,-153.0,0.00015863,2]
[361475131,1747579848175,-153.0,0.00015863,2]
[361475134,1747579848184,-153.0,0.00015863,2]
[361475136,1747579848193,-153.0,0.00015863,2]
[361475137,1747579848203,-153.0,0.00015863,2]
[361475139,1747579848212,-153.0,0.00015863,2]
[361475142,1747579848223,-153.0,0.00015863,2]
[361475144,1747579848233,-153.0,0.00015863,2]
[361475146,1747579848243,-634.09,0.0001589,2]
[361475147,1747579848253,-572.68,0.0001589,2]
[361475149,1747579848266,-919.46,0.0001589,2]
[361475151,1747579848276,-423.7929398,0.0001589,2]
[361475154,1747579848286,-450.0,0.0001589,2]
[361475156,1747579848296,-450.0,0.0001589,2]
[361475158,1747579848305,-1803.91,0.0001589,2]
[361475160,1747579848314,-1306.72,0.0001589,2]
[361475161,1747579848323,-645.83,0.0001589,2]
[361475164,1747579848333,-4149.33,0.0001589,2]
[361475166,1747579848342,-450.0,0.0001589,2]
[361475167,1747579848353,-1511.46,0.0001589,2]
[361475170,1747579848362,-450.0,0.0001589,2]
[361475172,1747579848372,-594.22,0.0001589,2]
[361475173,1747579848382,-450.0,0.0001589,2]
[361475176,1747579848391,-790.93,0.0001589,2]
[361475178,1747579848400,-605.84,0.0001589,2]
[361475180,1747579848409,-1310.29,0.0001589,2]
[361475182,1747579848419,-165.57510188,0.000159,2]
[361475183,1747579848428,-2000.0,0.00016,2]
[361475186,1747579848438,-1000.0,0.00016,3]
[361475187,1747579848448,-151.0,0.00016,2]
[361475190,1747579848458,-151.0,0.00016027,2]
[361475192,1747579848467,-161.318608,0.00016027,2]
[361475194,1747579848476,-151.0,0.00016027,2]
[361475195,1747579848486,-151.0,0.00016027,2]
[361475198,1747579848495,-208.04388,0.00016027,2]
[361475199,1747579848505,-208.04388,0.00016027,2]
[361475202,1747579848516,-490.730399,0.00016027,2]
[361475203,1747579848526,-490.730399,0.00016027,2]
[361475206,1747579848536,-455.025104,0.00016027,2]
[361475208,1747579848549,-455.025104,0.00016027,2]
[361475209,1747579848559,-155.268986,0.00016027,2]
[361475210,1747579848568,-155.268986,0.00016027,2]
[361475211,1747579848576,-634.09,0.00016027,2]
[361475212,1747579848586,-572.68,0.00016027,2]
[361475213,1747579848595,-919.46,0.00016027,2]
[361475214,1747579848604,-358.564294,0.00016027,2]
[361475215,1747579848613,-358.564292,0.00016027,2]
[361475216,1747579848624,-450.0,0.00016027,2]
[361475217,1747579848634,-450.0,0.00016027,2]
[361475218,1747579848643,-1803.91,0.00016027,2]
[361475219,1747579848652,-1306.72,0.00016027,2]
[361475220,1747579848662,-645.83,0.00016027,2]
[361475221,1747579848671,-4149.33,0.00016027,2]
[361475222,1747579848681,-450.0,0.00016027,2]
[361475223,1747579848690,-1511.46,0.00016027,2]
[361475224,1747579848701,-450.0,0.00016027,2]
[361475225,1747579848710,-594.22,0.00016027,2]
[361475226,1747579848720,-450.0,0.00016027,2]
[361475227,1747579848730,-790.93,0.00016027,2]
[361475228,1747579848740,-605.84,0.00016027,2]
[361475229,1747579848749,-1310.29,0.00016027,2]
[361475230,1747579848760,-151.0,0.0001603,2]
[361475232,1747579848772,-3744.51631428,0.00016038,2]
[361475235,1747579848782,-151.0,0.00016038,2]
[361475236,1747579848792,-151.0,0.00016038,2]
[361475238,1747579848802,-1500.0,0.00016068,2]
[361475240,1747579848811,-1500.0,0.00016068,2]
[361475242,1747579848821,-151.0,0.00016164,2]
[361475244,1747579848830,-187.710025,0.00016164,2]
[361475247,1747579848840,-187.710025,0.00016164,2]
[361475249,1747579848850,-634.09,0.00016164,2]
[361475251,1747579848859,-572.68,0.00016164,2]
[361475252,1747579848868,-919.46,0.00016164,2]
[361475254,1747579848878,-450.0,0.00016164,2]
[361475256,1747579848888,-450.0,0.00016164,2]
[361475258,1747579848897,-1803.91,0.00016164,2]
[361475261,1747579848907,-1306.72,0.00016164,2]
[361475262,1747579848917,-645.83,0.00016164,2]
[361475264,1747579848926,-4149.33,0.00016164,2]
[361475266,1747579848936,-450.0,0.00016164,2]
[361475269,1747579848946,-1511.46,0.00016164,2]
[361475271,1747579848955,-327.70189511,0.00016164,2]
[361475272,1747579848965,-594.22,0.00016164,2]
[361475274,1747579848974,-450.0,0.00016164,2]
[361475276,1747579848983,-790.93,0.00016164,2]
[361475278,1747579848992,-605.84,0.00016164,2]
[361475280,1747579849002,-500.0,0.00016164,2]
[361475282,1747579849011,-500.0,0.00016164,2]
[361475284,1747579849023,-500.0,0.00016164,2]
[361475286,1747579849032,-500.0,0.00016164,2]
[361475288,1747579849042,-426.28436894,0.00016164,2]
[361475290,1747579849051,-500.0,0.00016164,2]
[361475292,1747579849061,-500.0,0.00016164,2]
[361475294,1747579849069,-500.0,0.00016164,2]
[361475296,1747579849078,-500.0,0.00016164,2]
[361475298,1747579849088,-500.0,0.00016164,2]
[361475300,1747579849097,-1310.29,0.00016164,2]
[361475302,1747579849106,-549.345,0.00016219,2]
[361475304,1747579849116,-490.730399,0.00016301,2]
[361475306,1747579849126,-490.730405,0.00016301,2]
[361475308,1747579849135,-455.025104,0.00016301,2]
[361475310,1747579849144,-455.025104,0.00016301,2]
[361475312,1747579849154,-155.268986,0.00016301,2]
[361475314,1747579849164,-155.268994,0.00016301,2]
[361475316,1747579849174,-634.09,0.00016301,2]
[361475318,1747579849183,-572.68,0.00016301,2]
[361475320,1747579849192,-919.46,0.00016301,2]
[361475322,1747579849201,-450.0,0.00016301,2]
[361475324,1747579849211,-450.0,0.00016301,2]
[361475326,1747579849221,-1803.91,0.00016301,2]
[361475328,1747579849231,-1306.72,0.00016301,2]
[361475330,1747579849240,-645.83,0.00016301,2]
[361475332,1747579849250,-4149.33,0.00016301,2]
[361475334,1747579849260,-450.0,0.00016301,2]
[361475336,1747579849272,-1511.46,0.00016301,2]
[361475338,1747579849282,-594.22,0.00016301,2]
[361475340,1747579849291,-450.0,0.00016301,2]
[361475342,1747579849301,-790.93,0.00016301,2]
[361475344,1747579849310,-605.84,0.00016301,2]
[361475346,1747579849319,-1310.29,0.00016301,2]
[361475348,1747579849328,-1000.0,0.00016371,5]
[361475350,1747579849338,-151.0,0.00016438,2]
[361475352,1747579849348,-151.0,0.00016438,2]
[361475354,1747579849358,-232.103503,0.00016438,2]
[361475356,1747579849368,-151.0,0.00016438,2]
[361475357,1747579849378,-151.0,0.00016438,2]
[361475359,1747579849388,-208.04388,0.00016438,2]
[361475361,1747579849398,-208.04388,0.00016438,2]
[361475363,1747579849407,-151.0,0.00016438,2]
[361475365,1747579849416,-187.710025,0.00016438,2]
[361475367,1747579849426,-187.710025,0.00016438,2]
[361475369,1747579849435,-634.09,0.00016438,2]
[361475371,1747579849445,-572.68,0.00016438,2]
[361475373,1747579849455,-919.46,0.00016438,2]
[361475375,1747579849465,-450.0,0.00016438,2]
[361475377,1747579849474,-450.0,0.00016438,2]
[361475379,1747579849484,-1803.91,0.00016438,2]
[361475381,1747579849494,-1306.72,0.00016438,2]
[361475383,1747579849503,-645.83,0.00016438,2]
[361475385,1747579849513,-4149.33,0.00016438,2]
[361475388,1747579849524,-450.0,0.00016438,2]
[361475389,1747579849534,-1511.46,0.00016438,2]
[361475392,1747579849549,-594.22,0.00016438,2]
[361475394,1747579849560,-500.0,0.00016438,2]
[361475395,1747579849569,-450.0,0.00016438,2]
[361475397,1747579849579,-790.93,0.00016438,2]
[361475400,1747579849589,-605.84,0.00016438,2]
[361475402,1747579849598,-1310.29,0.00016438,2]
[361475403,1747579849607,-151.0,0.00016438,2]
[361475405,1747579849616,-151.0,0.00016438,2]
[361475407,1747579849628,-151.0,0.00016438,2]
[361475410,1747579849637,-257.641941,0.00016438,2]
[361475412,1747579849646,-338.75689,0.00016438,2]
[361475414,1747579849656,-338.75689,0.00016438,2]
[361475416,1747579849666,-338.75689,0.00016438,2]
[361475418,1747579849676,-338.75689,0.00016438,2]
[361475420,1747579849686,-338.75689,0.00016438,2]
[361475422,1747579849695,-338.75689,0.00016438,2]
[361475424,1747579849704,-338.75689,0.00016438,2]
[361475426,1747579849714,-338.75689,0.00016438,2]
[361475428,1747579849723,-338.75689,0.00016438,2]
[361475430,1747579849732,-338.75689,0.00016438,2]
[361475432,1747579849741,-338.75689,0.00016438,2]
[361475434,1747579849751,-338.75689,0.00016438,2]
[361475436,1747579849760,-338.75689,0.00016438,2]
[361475438,1747579849774,-338.75689,0.00016438,2]
[361475440,1747579849784,-338.75689,0.00016438,2]
[361475442,1747579849793,-338.75689,0.00016438,2]
[361475444,1747579849802,-338.75689,0.00016438,2]
[361475446,1747579849811,-338.75689,0.00016438,2]
[361475448,1747579849820,-338.75689,0.00016438,2]
[361475450,1747579849829,-338.756899,0.00016438,2]
[361475451,1747579849839,-236.535339,0.00016438,2]
[361475453,1747579849849,-3744.51631428,0.00016486,2]
[361475455,1747579849859,-3000.0,0.000165,2]
[361475458,1747579849870,-634.09,0.00016575,2]
[361475459,1747579849880,-572.68,0.00016575,2]
[361475462,1747579849889,-919.46,0.00016575,2]
[361475464,1747579849899,-450.0,0.00016575,2]
[361475466,1747579849909,-450.0,0.00016575,2]
[361475468,1747579849919,-1803.91,0.00016575,2]
[361475470,1747579849928,-1306.72,0.00016575,2]
[361475472,1747579849937,-645.83,0.00016575,2]
[361475474,1747579849946,-4149.33,0.00016575,2]
[361475475,1747579849955,-450.0,0.00016575,2]
[361475477,1747579849964,-1511.46,0.00016575,2]
[361475479,1747579849975,-594.22,0.00016575,2]
[361475482,1747579849985,-217.72593405,0.00016575,2]
[361475484,1747579849995,-790.93,0.00016575,2]
[361475485,1747579850004,-605.84,0.00016575,2]
[361475487,1747579850013,-1310.29,0.00016575,2]
[361475502,1747579850137,-547.742,0.00016602,2]
[361475504,1747579850147,-2246.865,0.00016602,2]
[361475505,1747579850156,-709.093,0.00016602,2]
[361475508,1747579850165,-500.0,0.00016616,2]
[361475510,1747579850175,-153.0,0.00016685,2]
[361475512,1747579850184,-153.0,0.00016685,2]
[361475514,1747579850194,-151.0,0.00016712,2]
[361475515,1747579850204,-151.0,0.00016712,2]
[361475517,1747579850215,-634.09,0.00016712,2]
[361475519,1747579850224,-572.68,0.00016712,2]
[361475521,1747579850233,-919.46,0.00016712,2]
[361475523,1747579850243,-276.69,0.00016712,2]
[361475525,1747579850252,-450.0,0.00016712,2]
[361475527,1747579850262,-1803.91,0.00016712,2]
[361475529,1747579850273,-1306.72,0.00016712,2]
[361475531,1747579850282,-645.83,0.00016712,2]
[361475533,1747579850291,-4149.33,0.00016712,2]
[361475535,1747579850301,-450.0,0.00016712,2]
[361475537,1747579850311,-1511.46,0.00016712,2]
[361475539,1747579850321,-594.22,0.00016712,2]
[361475541,1747579850330,-790.93,0.00016712,2]
[361475543,1747579850340,-605.84,0.00016712,2]
[361475545,1747579850350,-1310.29,0.00016712,2]
[361475547,1747579850359,-151.0,0.00016849,2]
[361475549,1747579850369,-151.0,0.00016849,2]
[361475551,1747579850378,-634.18,0.00016849,2]
[361475553,1747579850388,-572.78,0.00016849,2]
[361475555,1747579850397,-919.60730535,0.00016849,2]
[361475557,1747579850407,-214.99373268,0.00016849,2]
[361475559,1747579850416,-1804.1,0.00016849,2]
[361475561,1747579850426,-1306.9,0.00016849,2]
[361475563,1747579850435,-646.06413654,0.00016849,2]
[361475565,1747579850444,-4149.40690315,0.00016849,2]
[361475567,1747579850453,-346.92,0.00016849,2]
[361475569,1747579850463,-1511.64,0.00016849,2]
[361475571,1747579850472,-594.24,0.00016849,2]
[361475573,1747579850482,-791.0839121,0.00016849,2]
[361475575,1747579850492,-606.00840946,0.00016849,2]
[361475577,1747579850501,-1310.34518547,0.00016849,2]
[361475579,1747579850511,-199.7262,0.00016895,2]
[361475582,1747579850523,-3744.51631428,0.00016934,2]
[361475584,1747579850534,-5000.0,0.00016978,2]
[361475586,1747579850547,-5000.0,0.00016978,2]
[361475587,1747579850557,-5000.0,0.00016978,2]
[361475589,1747579850566,-2000.0,0.00017,2]
[361475592,1747579850576,-1130.0,0.00017,4]
[361475593,1747579850585,-493.49182285,0.00017,30]
[361475595,1747579850595,-208.04388,0.00017,2]
[361475597,1747579850604,-208.04388,0.00017,2]
[361475600,1747579850614,-1152.0,0.0001708,2]
[361475601,1747579850623,-153.0,0.00017233,2]
[361475603,1747579850632,-153.0,0.00017233,2]
[361475606,1747579850642,-153.0,0.00017233,2]
[361475608,1747579850651,-3744.51631428,0.00017383,2]
[361475609,1747579850662,-1136.39803199,0.00017384,2]
[361475612,1747579850672,-5000.0,0.00017797,2]
[361475614,1747579850681,-3744.51631428,0.00017831,2]
[361475616,1747579850691,-2000.0,0.00018,2]
[361475618,1747579850702,-365.29,0.00018,2]
[361475619,1747579850712,-365.29,0.00018,2]
[361475621,1747579850722,-365.29,0.00018,2]
[361475623,1747579850732,-3744.51631428,0.00018279,2]
[361475625,1747579850743,-200.0,0.00018287,4]
[361475627,1747579850754,-3000.0,0.0001864,2]